[Event "ISR-ch Women 2018"]
[Site "Ma'alot-Tarshih"]
[Date "2018.12.20"]
[Round "9"]
[White "Katkov, Michelle"]
[Black "Ovechkin, Lilia"]
[Result "1-0"]
[ECO "B04"]
[WhiteElo "1887"]
[BlackElo "1779"]
[Annotator "NA RC"]
[PlyCount "79"]
[EventDate "2018.12.12"]
[EventType "swiss"]
[EventCountry "ISR"]
[SourceTitle "playchess.com"]
[Source "ChessBase"]
[SourceQuality "1"]
[TimeControl "40/5400+30:1800+30"]

1. e4 {[%emt 0:00:00] Finkel,A} Nf6 {[%emt 0:00:00]} 2. e5 {[%emt 0:00:00]} Nd5 {[%emt 0:00:03]} 3. d4 {[%emt 0:00:00]} d6 {[%emt 0:00:15]} 4. Nf3 {[%emt 0:00:00]} Nb6 {[%emt 0:02:35]} 5. Nc3 {[%emt 0:03:13]} Bg4 {[%emt 0:05:56] B04: Alekhine's Defence: 4 Nf3} 6. h3 {[%emt 0:01:11]} Bf5 {[%emt 0:17:15]} 7. Be3 $146 {[%emt 0:15:12]} ({Predecessor:} 7. Bd3 Bxd3 8. Qxd3 e6 9. exd6 Bxd6 10. Ne4 h6 11. O-O O-O 12. c4 Be7 13. b3 {½-½ (32) Bellini,F (2418)-Varga,Z (2518) Baden 1999 CBM 071 [Finkel,A]}) 7... e6 {[%emt 0:06:02]} 8. Ng5 {[%emt 0:03:48]} (8. exd6 $14 Bxd6 9. Bd3) 8... dxe5 {[%emt 0:11:43]} 9. dxe5 {[%emt 0:00:16]} Qxd1+ {[%emt 0:00:40]} 10. Kxd1 {[%emt 0:01:09]} Nc6 {[%emt 0:05:37]} 11. f4 {[%emt 0:09:49]} Be7 {[%emt 0:05:48]} 12. Nge4 {[%emt 0:04:24]} O-O-O+ {[%emt 0:04:48]} 13. Bd3 {[%emt 0:05:54]} Nc4 {[%emt 0:03:19]} 14. Bc1 {[%emt 0:03:01]} Bb4 {[%emt 0:08:56]} 15. Ke2 {[%emt 0:05:21]} Nd4+ {[%emt 0:11:01]} 16. Kf2 {[%emt 0:02:13]} Nb6 {[%emt 0:02:58]} 17. a4 {[%emt 0:11:49]} Bxc3 {[%emt 0:00:53]} 18. bxc3 {[%emt 0:00:44]} Bxe4 {[%emt 0:02:38]} 19. Bxe4 {[%emt 0:00:43]} Nf5 {[%emt 0:00:31]} 20. Rb1 {[%emt 0:06:15]} ({Better is} 20. g4 $16 Ne7 21. a5) 20... c6 $1 {[%emt 0:00:31]} 21. g4 {[%emt 0:04:40]} Ne7 {[%emt 0:00:20]} 22. a5 {[%emt 0:07:12]} Nbd5 {[%emt 0:00:23]} ({Better is} 22... Na4 $14) 23. Rb3 {[%emt 0:00:12]} Rd7 {[%emt 0:03:22]} (23... f5 $16 {might work better.}) 24. c4 {[%emt 0:01:06]} Nc7 $18 {[%emt 0:00:10]} 25. Ba3 {[%emt 0:01:07]} Na6 {[%emt 0:01:01]} 26. Bd6 {[%emt 0:01:19]} h5 {[%emt 0:01:06]} 27. Rhb1 {[%emt 0:02:21]} hxg4 {[%emt 0:00:28]} 28. hxg4 {[%emt 0:00:01]} f5 {[%emt 0:01:59]} 29. gxf5 {[%emt 0:01:24]} Nxf5 {[%emt 0:00:18]} 30. Bxc6 {[%emt 0:00:53]} Nxd6 {[%emt 0:03:38]} 31. Bxd7+ {[%emt 0:00:06]} Kxd7 {[%emt 0:00:04]} 32. exd6 {[%emt 0:00:08]} Kxd6 {[%emt 0:00:31]} 33. Rxb7 {[%emt 0:01:05]} Rh2+ {[%emt 0:00:04]} 34. Ke3 {[%emt 0:00:54]} Rxc2 {[%emt 0:00:10]} 35. Rxa7 {[%emt 0:00:33]} Nc7 {[%emt 0:00:26]} 36. Rb6+ {[%emt 0:00:37]} Kd7 {[%emt 0:00:08]} 37. Kd3 {[%emt 0:00:13]} Ra2 {[%emt 0:01:47]} 38. Rbb7 {[%emt 0:00:06]} Kd6 {[%emt 0:00:11]} 39. Rxc7 {[%emt 0:00:16]} Rxa5 {[%emt 0:00:06]} 40. Rxa5 {[%emt 0:00:06] Kd5 [%clk 0:00:00] Ke4+} 1-0

[Event "ISR-ch Women 2018"]
[Site "Ma'alot-Tarshih"]
[Date "2018.12.20"]
[Round "9"]
[White "Brusilovski, Lena"]
[Black "Vardi, Shlomit"]
[Result "0-1"]
[ECO "B07"]
[WhiteElo "1886"]
[BlackElo "1910"]
[Annotator "NA RC"]
[PlyCount "52"]
[EventDate "2018.12.12"]
[EventType "swiss"]
[EventCountry "ISR"]
[SourceTitle "playchess.com"]
[Source "ChessBase"]
[SourceQuality "1"]
[TimeControl "40/5400+30:1800+30"]

1. e4 {[%emt 0:00:00]} d6 {[%emt 0:00:00]} 2. d4 {[%emt 0:00:00]} g6 {[%emt 0:00:00]} 3. f4 {[%emt 0:01:04]} Bg7 {[%emt 0:00:07]} 4. Nf3 {[%emt 0:00:40]} Nf6 {[%emt 0:02:11]} 5. Bd3 {[%emt 0:02:10]} c5 {[%emt 0:03:37]} 6. c3 {[%emt 0:01:06]} Bg4 {[%emt 0:01:00] B07: Pirc Defence: Miscellaneous Systems} (6... O-O 7. O-O Bg4 8. Be3 Nbd7 9. Nbd2 cxd4 10. cxd4 Rc8 11. h3 Bxf3 12. Qxf3 a6 13. a4 Qb6 14. e5 Ne8 15. Bc4 {1-0 (54) Khairat,A (2211)-Araz,B (2368) Riadh 2017}) 7. O-O {[%emt 0:02:00]} cxd4 {[%emt 0:01:27]} 8. cxd4 {[%emt 0:00:30]} Qb6 {[%emt 0:00:10]} 9. Kh1 {[%emt 0:01:21]} O-O {[%emt 0:00:13]} 10. d5 {[%emt 0:01:25]} Nbd7 {[%emt 0:00:26]} 11. Nc3 {[%emt 0:00:44]} Rac8 $146 {[%emt 0:05:17]} ({Predecessor:} 11... Nc5 12. Na4 Nxa4 13. Qxa4 Rac8 14. h3 Bd7 15. Qa3 {0-1 (58) Saber,S (1847)-Lobato Rivero,C (1999) Madrid 2014}) 12. Qe2 {[%emt 0:02:29]} (12. h3 $5 {[%cal Rh3g4]} Bxf3 13. Rxf3 $11) 12... Nc5 {[%emt 0:00:45]} 13. Be3 {[%emt 0:02:04]} Nfd7 {[%emt 0:01:45]} 14. h3 {[%emt 0:00:24]} Bxf3 {[%emt 0:00:10]} 15. Rxf3 {[%emt 0:00:03]} Qa5 {[%emt 0:01:00]} 16. Bd2 {[%emt 0:00:56]} Nxd3 {[%emt 0:01:31]} 17. Qxd3 {[%emt 0:02:44]} Nc5 {[%emt 0:04:40]} 18. Qf1 {[%emt 0:00:14]} Qb4 $15 {[%emt 0:06:48]} 19. Qe1 {[%emt 0:00:31]} Qxb2 {[%emt 0:10:26]} 20. Rb1 {[%emt 0:00:49]} Qa3 {[%emt 0:00:28]} 21. e5 {[%emt 0:01:38]} Qa6 {[%emt 0:01:30]} 22. Nb5 {[%emt 0:02:02]} Qxa2 {[%emt 0:02:47]} 23. exd6 {[%emt 0:00:57]} exd6 {[%emt 0:00:56]} 24. Nxd6 {[%emt 0:00:08]} Rcd8 {[%emt 0:00:19]} 25. Nxb7 {[%emt 0:01:42]} Nxb7 {[%emt 0:02:29]} 26. Rxb7 {[%emt 0:03:35]} Qxd5 {[%emt 0:00:14]} 0-1

[Event "ISR-ch Women 2018"]
[Site "Ma'alot-Tarshih"]
[Date "2018.12.20"]
[Round "9"]
[White "Shaul Zeidner, Lyad"]
[Black "Reprun, Nadejda"]
[Result "0-1"]
[ECO "B13"]
[WhiteElo "1671"]
[BlackElo "2016"]
[Annotator "NA RC"]
[PlyCount "82"]
[EventDate "2018.12.12"]
[EventType "swiss"]
[EventCountry "ISR"]
[SourceTitle "playchess.com"]
[Source "ChessBase"]
[SourceQuality "1"]
[TimeControl "40/5400+30:1800+30"]

{[%evp 15,64,-39,-29,-39,-36,-44,-37,-63,-71,-149,-94,-133,-112,-97,-81,-68,-77,-139,-44,32767,32767,32767,32767,32767,32767,32767,-137,32767,32767,-166,32767,-201,32767,-256,32767,-114,-110,-133,-121,-106,32767,-123,32767,-120,-113,-124,-114,-119,-131,-156,-190]} 1. e4 {[%emt 0:00:00]} c6 {[%emt 0:00:00]} 2. d4 {[%emt 0:00:08]} d5 {[%emt 0:00:00]} 3. exd5 {[%emt 0:00:07]} cxd5 {[%emt 0:00:00]} 4. Nc3 {[%emt 0:00:56]} Nf6 {[%emt 0:01:08]} 5. Bf4 {[%emt 0:01:26]} a6 {[%emt 0:01:03] B13: Caro-Kann: Exchange Variation and Panov-Botvinnik Attack} 6. Be2 {[%emt 0:01:15]} (6. Bd3 Nc6 7. Nge2 Bg4 8. f3 Bh5 9. h4 Bg6 10. g4 e6 11. h5 Bxd3 12. Qxd3 h6 13. O-O-O {0-1 (50) Jobava,B (2646)-Nisipeanu,L (2657) Spilimbergo 2018}) 6... Bf5 {[%emt 0:02:15]} 7. Nf3 {[%emt 0:05:10]} h6 {[%emt 0:02:58]} 8. Nd2 $146 {[%emt 0:05:41]} ({Predecessor:} 8. O-O e6 9. Ne5 Bd6 10. Bd3 Bxd3 11. Qxd3 O-O 12. Ne2 {0-1 (36) Vidal Masferrer,M (1497)-Deulofeu Peramarch,E (1712) Costa Brava 2016}) 8... e6 {[%emt 0:02:31]} 9. a3 {[%emt 0:00:41]} Be7 {[%emt 0:02:47]} 10. h3 {[%emt 0:03:52]} Nbd7 {[%emt 0:01:54]} 11. Bf3 {[%emt 0:09:27]} Rc8 {[%emt 0:02:14]} 12. Rc1 {[%emt 0:01:07]} (12. O-O $15) 12... Nb6 {[%emt 0:03:00]} 13. O-O {[%emt 0:02:35]} O-O {[%emt 0:00:45]} 14. Qe2 {[%emt 0:00:40]} Nc4 {[%emt 0:04:43]} 15. Nxc4 {[%emt 0:00:40]} Rxc4 {[%emt 0:01:03]} 16. Rfd1 {[%emt 0:01:37]} Re8 {[%emt 0:02:35]} ({Black should try} 16... Qb6 $17 17. Nxd5 Nxd5 18. Bxd5 Rxd4 {[%mdl 64] Double Attack}) 17. Nb1 {[%emt 0:04:25]} Qb6 {[%emt 0:06:20]} 18. c3 {[%emt 0:01:40]} Rcc8 {[%emt 0:02:10]} 19. g4 {[%emt 0:06:38]} Bg6 {[%emt 0:02:01]} 20. Bg2 {[%emt 0:00:37]} Qb3 {[%emt 0:12:43]} 21. Bf1 {[%emt 0:16:14]} b5 {[%emt 0:14:52]} 22. f3 {[%emt 0:03:27]} Nd7 {[%emt 0:00:39]} 23. a4 {[%emt 0:11:13]} Qxa4 {[%emt 0:07:02]} 24. Nd2 {[%emt 0:02:41]} Qa5 {[%emt 0:03:00]} 25. Ra1 {[%emt 0:00:34]} Qb6 {[%emt 0:00:02]} 26. Be3 {[%emt 0:01:19]} Qb7 {[%emt 0:05:36]} 27. f4 {[%emt 0:01:06]} Nf6 {[%emt 0:02:08]} 28. Ra2 {[%emt 0:01:19]} Ne4 {[%emt 0:01:25]} 29. Nxe4 {[%emt 0:00:34]} Bxe4 {[%emt 0:00:03]} 30. Rda1 {[%emt 0:01:18]} Rc6 {[%emt 0:01:02]} 31. Bg2 {[%emt 0:01:44]} Bxg2 {[%emt 0:00:49]} 32. Qxg2 {[%emt 0:00:35]} b4 $19 {[%emt 0:02:38]} 33. Bd2 {[%emt 0:04:01]} bxc3 {[%emt 0:00:39]} 34. Bxc3 {[%emt 0:00:53]} Bb4 {[%emt 0:01:25]} 35. Bxb4 {[%emt 0:01:43]} Qxb4 {[%emt 0:00:05]} 36. Rxa6 {[%emt 0:00:37]} Qxd4+ {[%emt 0:01:07]} 37. Qf2 {[%emt 0:00:18]} Qxf2+ {[%emt 0:00:17]} 38. Kxf2 {[%emt 0:00:03]} Rc2+ {[%emt 0:00:17]} 39. Kg3 {[%emt 0:03:04]} Rxb2 {[%emt 0:00:22]} 40. Rc1 {[%emt 0:01:03]} g5 {[%emt 0:02:34]} 41. fxg5 {[%emt 0:32:58]} hxg5 {[%emt 0:30:09]} 0-1